Cogmind - Beta 16 @@@ ROGUE MODE // 2025.11.06 @ 17:26:07 Player: souux Result: Destroyed by 4U-5D5(R) with Subdweller Laser Performance ------------- Evolutions (0) 0 Regions Visited (2) 400 Robots Destroyed (35) 175 Value Destroyed (545) 545 Prototype IDs (3) 60 Alien Tech Used (0) 0 Bonus (0) 0 TOTAL SCORE: 1180 Bonus ------- None Cogmind --------- Core Integrity 0/250 Matter 282/300 Energy 176/250 System Corruption 4% Temperature Cool (6) Movement Treading (160) Location -10/Subcaves Parts ------- > --- POWER (1) -------- Ion Engine > --- PROPULSION (2) --- Light Treads Light Treads > --- UTILITY (2) ------ Large Storage Unit Light Armor Plating > --- WEAPON (2) ------- Improved EM Shotgun Improved EM Shotgun > --- INVENTORY (15) --- Subdweller Power Source Light Treads Heat Sink High-capacity Matter Pod (200) Subdweller Optics Seismic Detector ECM Suite Light Armor Plating Hacking Suite Hacking Suite Subdweller Laser Subdweller Machine Gun Mini Grenade Launcher Mini Grenade Launcher Datajack Peak State ------------ > --- POWER ------------ Ion Engine > --- PROPULSION ------- Wheel Compact Wheel > --- UTILITY ---------- Large Storage Unit Seismic Detector > --- WEAPON ----------- Improved EM Shotgun Improved EM Shotgun > --- INVENTORY -------- Ion Engine Light Treads Light Treads Aluminum Leg Aluminum Leg Seismic Detector ECM Suite Light Armor Plating EM Shotgun EM Shotgun EM Shotgun Assault Rifle Assault Rifle Mini Grenade Launcher Mini Grenade Launcher [Rating: 13] Favorites ----------- Power Ion Engine Engine Ion Engine Propulsion Light Treads Treads Light Treads Wheel Wheel Utility Large Storage Unit Device Seismic Detector Storage Large Storage Unit Protection Light Armor Plating Weapon Improved EM Shotgun Energy Gun Improved EM Shotgun Energy Cannon Light EM Pulse Cannon Ballistic Gun Assault Rifle Launcher Grenade Launcher Build | -11 -10 -10 ------- Run | Yrd Mat Sub Slots Evolved . | . . . Power . | . . . Propulsion . | . . . Utility . | . . . Weapon . | . . . Parts Attached 27 | 7 18 2 Power 3 | 1 1 1 Engine 3 | 1 1 1 Core . | . . . Reactor . | . . . Propulsion 5 | 2 3 . Treads 2 | . 2 . Leg . | . . . Wheel 3 | 2 1 . Hover . | . . . Flight . | . . . Utility 6 | 2 3 1 Device 2 | 1 1 . Storage 2 | 1 1 . Processor . | . . . Hackware . | . . . Protection 2 | . 1 1 Artifact . | . . . Weapon 13 | 2 11 . Energy Gun 6 | . 6 . Energy Cannon 2 | . 2 . Ballistic Gun 3 | 2 1 . Ballistic Cannon . | . . . Launcher 2 | . 2 . Special Weapon . | . . . Impact Weapon . | . . . Slashing Weapon . | . . . Piercing Weapon . | . . . Special Melee Weapon . | . . . Unidentified Prototypes 1 | . 1 . Corrupted Parts 1 | . 1 . System Corruption 2 | . 2 . Parts Lost 1 | . . 1 Power 1 | . . 1 Propulsion . | . . . Utility . | . . . Weapon . | . . . Highest Loss Streak 1 | . . 1 To Critical Strikes . | . . . Average Backups 13 | 4 12 14 Power . | . 1 . Propulsion 2 | 3 3 1 Utility 5 | . 4 7 Weapon 3 | . 3 3 Tool/Special . | . . . Unused Backups 18 | . 4 14 Power 1 | . . 1 Propulsion 3 | . 1 2 Utility 6 | . . 6 Weapon 7 | . 3 4 Tool/Special 1 | . . 1 Average Slot Usage (%) 99 | . 100 99 Engine 13 | . 14 13 Treads 13 | . 1 28 Wheel 14 | . 26 . Device 2 | . 5 . Storage 14 | . 14 14 Protection 11 | . 8 14 Energy Gun 23 | . 20 28 Ballistic Gun 3 | . 6 . Peak Build Rating 13 | 7 13 13 Average Rating 11 | 5 11 12 On Entrance 6 | . 7 13 Avg Prop Armor Cover (%) 8 | . 8 . Naked Turns . | . . . Heaviest Build 34 | 15 34 34 Greatest Support 40 | 20 40 40 Greatest Overweight (x) 1 | . 1 . Average Overweight (x) . | . . . Largest Inventory Capacity 15 | 8 15 15 Average Capacity 14 | 7 14 15 Most Carried 15 | 7 15 15 Average Carried 13 | 5 12 14 Final Capacity 15 | 8 15 15 Final Carried 15 | 7 14 15 Class Distribution -------------------- 100% | Mutant Dominant Class ---------------- Mutant | -10/Materials Mutant | -10/Subcaves Resources | -11 -10 -10 ----------- Run | Yrd Mat Sub Matter Collected 865 | 312 469 84 Remotely . | . . . Salvage Created 995 | 92 761 142 Parts 79 | 10 57 12 Haulers Intercepted 1 | . 1 . Recyclers Shooed 5 | . 5 . Parts Field Recycled . | . . . Retrieved Matter . | . . . Parts Self-Destructed 1 | . . 1 Prevented . | . . . Parts Restored . | . . . Kills | -11 -10 -10 ------- Run | Yrd Mat Sub Combat Hostiles Destroyed 23 | . 20 3 Guns 13 | . 11 2 Cannons 1 | . 1 . AOE 9 | . 8 1 Classes Destroyed 9 | 2 6 1 Worker 1 | . 1 . Tunneler 2 | 2 . . Hauler 1 | . 1 . Recycler 4 | 1 3 . Operator 2 | . 2 . Watcher 2 | . 2 . Swarmer 15 | . 15 . Grunt 5 | . 5 . Subdweller 3 | . . 3 Best Kill Streak 5 | 3 5 2 Combat Bots Only 5 | . 5 2 Max Kills in Single Turn 3 | 1 3 1 Gunslinging 1 | . 1 . Exploded 3 | . 3 1 Melee . | . . . Uniques/NPCs Destroyed . | . . . Combat | -11 -10 -10 -------- Run | Yrd Mat Sub Hostile Shots Fired 82 | . 56 26 Missed 23 | . 15 8 Hits 59 | . 41 18 Projectile 59 | . 41 18 Damage Taken 877 | . 441 436 Core 257 | . 74 183 Absorbed by Shields . | . . . Core Remaining (%) 100 | 100 . . Volleys Fired 61 | 7 45 9 Largest 2 | 2 2 2 Hottest 112 | 40 112 90 Shots Fired 109 | 14 76 19 Gun 96 | 14 63 19 Cannon 8 | . 8 . Launcher 5 | . 5 . Special . | . . . Kinetic 26 | 14 12 . Thermal . | . . . Explosive 5 | . 5 . Electromagnetic 78 | . 59 19 Robot Hit Streak 19 | 5 6 19 Robot Miss Streak 5 | 2 5 1 Penetration Max . | . . . Secondary Targets 1 | . 1 . Max Gunslinging Chain 1 | . 1 . Shots Hit Robots 78 | 11 49 18 Core Hits 54 | 4 39 11 Critical Kills . | . . . Critical Parts Destroyed . | . . . Critical Strikes 1 | . 1 . Corrupt 1 | . 1 . Melee Attacks . | . . . Impact . | . . . Slashing . | . . . Piercing . | . . . Sneak Attacks . | . . . Combat Hostiles . | . . . Follow-up Attacks . | . . . Damage Inflicted 1694 | 133 1206 355 Guns 1069 | 133 624 312 Cannons 116 | . 116 . Explosions 446 | . 403 43 Melee . | . . . Ramming 63 | . 63 . Kinetic 202 | 133 69 . Thermal 144 | . 101 43 Explosive 302 | . 302 . Electromagnetic 983 | . 671 312 Impact . | . . . Slashing . | . . . Piercing . | . . . Highest Corruption 4 | . 4 4 Average Corruption 3 | . 2 4 Corruption Purged . | . . . Corruption Blocked . | . . . Effects 26 | . 2 24 Message Errors 6 | . 1 5 Matter Fused 7 | . 1 6 Heat Flow Errors 4 | . . 4 Energy Discharges 4 | . . 4 Data Loss (minor) 2 | . . 2 Misfires 1 | . . 1 Alerts 2 | . . 2 Overload Shots . | . . . Overflow Damage 19 | . 19 . Projectiles . | . . . Explosions 5 | . 5 . Melee 14 | . 14 . Knockbacks . | . . . Impact . | . . . Kinetic . | . . . Secondary . | . . . Self-Inflicted Damage 103 | . 81 22 Shots 3 | . 2 1 Rammed 6 | . 6 . Targets Rammed 6 | . 6 . Kicked . | . . . Crushed . | . . . Highest Temperature 202 | . 202 163 Average Temperature 54 | . 52 71 Received Heat Transfer 108 | . 42 66 Siege Activations . | . . . Martial Activations . | . . . Shielding Activations . | . . . Robots Disrupted . | . . . Combat Hostiles . | . . . Robots Corrupted 1 | . 1 . Combat Hostiles . | . . . Parts Fried 10 | . 6 4 Impact Corruptions 1 | . 1 . Robots Melted . | . . . Combat Hostiles . | . . . Parts Melted . | . . . Heat Transferred 200 | . 200 . Parts Sabotaged . | . . . Parts Stolen . | . . . Parts Stripped . | . . . Power Chain Reactions 4 | . 3 1 Alert | -11 -10 -10 ------- Run | Yrd Mat Sub Maximum Alert Level 1 | . 1 . Low Security (%) 98 | 100 98 . Level 1 1 | . 1 . Level 2 . | . . . Level 3 . | . . . Level 4 . | . . . Level 5 . | . . . High Security . | . . . Max Security . | . . . Peak Influence 202 | 10 202 . Initial . | . . . Average 99 | 1 107 . Influence Increases 631 | 15 616 . Destroy 0b10 Robot/C 400 | . 400 . Destroy 0b10 Robot/NC 60 | 15 45 . Destroy Leader 76 | . 76 . Successful Hack 13 | . 13 . Destroy Structure 52 | . 52 . Partial Spotted 15 | . 15 . Lose Combat Pursuer 15 | . 15 . Influence Decreases 631 | 15 481 135 Entered New Map 66 | . . 66 Time Decay 555 | 15 481 59 Lost Part 10 | . . 10 Squads Dispatched 2 | . 2 . Investigation . | . . . Extermination . | . . . Reinforcement 2 | . 2 . Assault . | . . . Garrison . | . . . Intercept . | . . . Searches Triggered . | . . . Construction Impeded . | . . . Haulers Reinforced . | . . . Active Scanning Responses . | . . . Cargo Convoy Interrupts . | . . . Stealth | -11 -10 -10 --------- Run | Yrd Mat Sub Distress Signals 2 | . 2 . Communications Jammed . | . . . Distress Signals . | . . . Times Spotted 34 | . 27 7 Peak Tracking Total 4 | . 4 3 Tactical Retreats 1 | . 1 . Traps | -11 -10 -10 ------- Run | Yrd Mat Sub Traps Triggered 2 | . 1 1 Indirectly . | . . . Trap Hack Attempts . | . . . Triggered . | . . . Disarmed . | . . . Reprogrammed . | . . . Reused . | . . . Traps Extracted . | . . . Installed . | . . . Triggered . | . . . Machines | -11 -10 -10 ---------- Run | Yrd Mat Sub Machines Disabled . | . . . Max in Single Turn . | . . . Machines Repaired . | . . . Machines Dismantled . | . . . Machines Sabotaged . | . . . Overloaded Fab Kills . | . . . Hacking | -11 -10 -10 --------- Run | Yrd Mat Sub Machines Accessed 5 | . 5 . Terminals 5 | . 5 . Fabricators . | . . . Repair Stations . | . . . Recycling Units . | . . . Scanalyzers . | . . . Garrison Access . | . . . Total Hacks 19 | . 19 . Successful 15 | . 15 . Failed 4 | . 4 . Catastrophic . | . . . Database Lockouts . | . . . Manual 12 | . 12 . Terminals 19 | . 19 . Fabricators . | . . . Repair Stations . | . . . Recycling Units . | . . . Scanalyzers . | . . . Garrison Access . | . . . Terminal Hacks 5 | . 5 . Record 2 | . 2 . Robot Analysis 1 | . 1 . Prototype ID Bank 1 | . 1 . Hauler Manifests 1 | . 1 . Fabricator Hacks . | . . . Repair Station Hacks . | . . . Recycling Unit Hacks . | . . . Scanalyzer . | . . . Garrison Access Hacks . | . . . Unauthorized Hacks 10 | . 10 . Terminals 10 | . 10 . Botnet 5 | . 5 . Skim 5 | . 5 . Fabricators . | . . . Repair Stations . | . . . Recycling Units . | . . . Scanalyzers . | . . . Garrison Access . | . . . Data Cores Recovered . | . . . Used . | . . . Hacking Detections 5 | . 5 . Full Trace Events . | . . . Feedback Events . | . . . Feedback Blocked . | . . . Robot Schematics Acquired . | . . . Robots Built . | . . . Authchips . | . . . Time . | . . . Total Robot Build Rating . | . . . Part Schematics Acquired . | . . . Parts Built . | . . . Authchips . | . . . Time . | . . . Total Part Build Rating . | . . . Part Studies Acquired . | . . . Parts Repaired . | . . . Time . | . . . Parts Recycled . | . . . Recycled Matter . | . . . Retrieved Matter . | . . . Retrieved Components . | . . . Parts Scanalyzed . | . . . Part Schematics Acquired . | . . . Parts Damaged . | . . . Bothacking | -11 -10 -10 ------------ Run | Yrd Mat Sub Used RIF Installer . | . . . Robots Hacked . | . . . Non-combat . | . . . Combat . | . . . Robot Hacks Applied . | . . . Relay Couplers Released . | . . . Fabnet Peak Effective % . | . . . Robots Rewired . | . . . Allies Hacked . | . . . Hacks Repelled . | . . . Allies | -11 -10 -10 -------- Run | Yrd Mat Sub Total Allies . | . . . Largest Group . | . . . Highest-Rated Group . | . . . Highest-Rated Ally . | . . . Total Orders . | . . . Ally Attacks . | . . . Total Damage . | . . . Kills . | . . . Allies Corrupted . | . . . Allies Melted . | . . . Intel | -11 -10 -10 ------- Run | Yrd Mat Sub Active Infowar (turns) 569 | 54 515 . Seismic 569 | 54 515 . Robot Analysis Total 1 | . 1 . Derelict Logs Recovered 2 | . . 2 Drone Launches . | . . . Drone Recoveries . | . . . Exploration | -11 -10 -10 ------------- Run | Yrd Mat Sub Turns Passed 2829 | 116 1456 1257 Spaces Moved 1738 | 77 1106 555 Core 3 | 3 . . Treads 591 | . 36 555 Legs . | . . . Wheels 1144 | 74 1070 . Hover . | . . . Flight . | . . . Fastest Speed 50 | 50 80 160 Average Speed 122 | 78 106 160 Slowest Speed 240 | 80 240 160 Overloaded Moves . | . . . Propulsion Burnouts . | . . . Robots Hopped . | . . . Potential Cave-ins . | . . . Cave-ins Triggered . | . . . Exploration Rate (%) 44 | 4 100 29 Regions Visited 2 Branch Regions 1 Pre-discovered Areas 2 | . 1 1 Known Exits Taken 1 | . 1 . Unknown Exits Taken 1 | 1 . . Scrap Searched . | . . . Spaces Dug 9 | . 9 . Terrain Destroyed 62 | . 53 9 Melee . | . . . Projectile . | . . . AOE 62 | . 53 9 Terrain Rammed . | . . . Walls Destroyed . | . . . Machines Disabled . | . . . Actions | -11 -10 -10 --------- Run | Yrd Mat Sub Total 2331 | 114 1311 906 Wait 439 | 17 88 334 Move 1736 | 76 1105 555 Hop . | . . . Pick Up 35 | 7 24 4 Fast Attach 8 | 7 1 . Attach 1 | . . 1 Detach . | . . . Swap 22 | . 21 1 Drop 23 | . 21 2 Fire 61 | 7 45 9 Melee . | . . . Ram 6 | . 6 . Kick . | . . . Crush . | . . . Escape Stasis . | . . . Rewire . | . . . Trap . | . . . Miscellaneous . | . . . Route ------- -11/Scrapyard -10/Materials (discovered 5 exits: *Mat x3 / [*Min] / *Sub) -10/Subcaves History --------- Turn | Location | Event 20 | -11/Scrapyard | Discovered new exit (range 15) 117 | -11/Scrapyard | Entered Materials 319 | -10/Materials | Build established: Mutant 532 | -10/Materials | Discovered new exit (range 11) 842 | -10/Materials | Discovered new exit (range 12) 886 | -10/Materials | Learned 2 Mines zone layouts 918 | -10/Materials | Identified exit to Materials 939 | -10/Materials | Learned 2 Mines zone layouts 949 | -10/Materials | Learned location of Recycling (-7) 951 | -10/Materials | Learned location of 2 exits from Mines 962 | -10/Materials | Loaded intel: 2 recycling unit locations 985 | -10/Materials | Identified exit to Subcaves 1573 | -10/Materials | Entered Subcaves 1578 | -10/Subcaves | Learned location of Storage (-7) 1857 | -10/Subcaves | A swath of the cavern ceiling suddenly collapsed 2462 | -10/Subcaves | Ambushed by Subdweller buried in earth 2463 | -10/Subcaves | Core integrity fell below 50% 2823 | -10/Subcaves | Core integrity fell below 20% 2830 | -10/Subcaves | Destroyed by 4U-5D5(R) with Subdweller Laser Last Messages --------------- Monowheel. 02482_ Dropped Aluminum Leg. 02483_ Acquired Sub. Laser. 02488_ System corrupted: Heat flow error (+198). 02515_ A,L1VB/2OP56V,T2|ZSUJHB3TUJ0JG& 02534_ System corrupted: Heat flow error (+138). 02580_ System corrupted: Energy discharge (-65). 02599_ Q&JS%AB